Workbook

Sheet 167-169 Smith St
B3: Income & Expenses
B4: Units | C4: Bedroom Count | D4: Monthly Projected Rent | E4: Pet Fees | F4: Total Monthly Income | G4: Yearly Projected Rent
B5: 1L | C5: 2 | D5: 1870 | E5: 35 | F5: =D5+E5 -> 1905 | G5: =F5*12 -> 22860
B6: 1R | C6: 2 | D6: 2050 | F6: =D6+E6 -> 2050 | G6: =F6*12 -> 24600
B7: 2L | C7: 2 | D7: 2055 | E7: 35 | F7: =D7+E7 -> 2090 | G7: 25080
B8: 2R | C8: 2 | D8: 2115 | F8: =D8+E8 -> 2115 | G8: 25380
B9: 3L | C9: 2 | D9: 2175 | F9: =D9+E9 -> 2175 | G9: 26100
B10: 3R | C10: 2 | D10: 2150 | F10: =D10+E10 -> 2150 | G10: 25800
B11: NSF Fee Income | G11: 250
B12: Security Deposit Reductions | G12: 2200
B13: Application Fee Income | G13: 913.75
B14: Late Fee Income | G14: 520
B16: Gross Potential Income | D16: =SUM(D5:D15) -> 12415 | G16: =SUM(G5:G15) -> 153703.75
B17: Vacancy | C17: 0.03 | G17: =C17*G16 -> 4611.1125
B18: Gross Income Post Vacancy | G18: =G16-G17 -> 149092.6375
B20: Expenses | F20: % | G20: Actual $ Amount (2025/2026)
B21: Taxes | F21: =G21/$G$16 -> 0.09873480641 | G21: 15175.91
B22: Water & Sewer | F22: =G22/$G$16 -> 0.01829831738 | G22: 2812.52
B23: Electric | F23: =G23/$G$16 -> 0.002757967844 | G23: 423.91
B24: Property Insurance | F24: =G24/$G$16 -> 0.02588830786 | G24: 3979.13
B25: Garbage & Cleaning | F25: =G25/$G$16 -> 0.009108430991 | G25: 1400
B26: Landscaping | F26: =G26/$G$16 -> 0.004619275717 | G26: 710
B27: Snow Removal - Est | F27: =G27/$G$16 -> 0.001301204427 | G27: 200
B28: Accounting | F28: =G28/$G$16 -> 0.005530118816 | G28: 850
B29: Admin | F29: =G29/$G$16 -> 0.004879516603 | G29: 750
B30: Repairs & Maintenance | F30: =G30/$G$16 -> 0.01951806641 | G30: 3000
B31: Reserves | F31: =G31/$G$16 -> 0.007807226564 | G31: 1200
B32: Management | F32: 0.03 | G32: =F32*G18 -> 4472.779125
B33: Total Expenses | F33: =G33/$G$16 -> 0.227543239 | G33: =SUM(G21:G32) -> 34974.24913
B34: Expenses Per Unit | G34: =G33/6 -> 5829.041521
B36: NOI | G36: =G18-G33 -> 114118.3884
B38: Sale Price | G38: 1800000
B39: Cap Rate | G39: =G36/G38 -> 0.06339910465
